[Event "Marienbad A1-GM 2024"]
[Site "Marianske Lazne"]
[Date "2024.01.16"]
[Round "4.1"]
[White "Kusa, Jakub"]
[Black "Stefansson, Hannes"]
[Result "1/2-1/2"]
[ECO "E10"]
[WhiteElo "2350"]
[BlackElo "2498"]
[Annotator "TA"]
[PlyCount "136"]
[EventDate "2024.01.10"]
[EventType "tourn"]
[EventCountry "CZE"]
[SourceTitle "playchess.com"]
[Source "ChessBase"]
[SourceQuality "1"]
[TimeControl "40/5400+30:1800+30"]

{[%evp 14,136,9,8,24,19,22,0,21,0,0,0,0,0,18,22,14,-7,11,-6,23,21,26,-1,22,0,3,0,16,-18,-19,-11,-18,-18,-18,-22,-1,-7,0,0,0,-11,0,0,0,0,-8,-58,-58,-57,-57,-71,-71,-76,-58,-58,-43,-50,-51,-55,-44,-66,-63,-63,-63,-63,-63,-70,-70,-176,-110,-90,-89,-212,-117,-101,-32,-33,-18,-18,-15,-11,0,0,0,-63,-51,-83,-85,-85,-85,-87,-87,-70,-60,-201,-205,-187,-196,-232,-176,-233,-228,-237,-237,-166,0,-109,-25,-458,-424,-393,8,24,77,20,24,0,0,0,0,0,0,0,0]} 1. d4 {[%emt 0:00:06]} Nf6 {[%emt 0:00:29]} 2. c4 {[%emt 0:00:25]} e6 {[%emt 0:00:26]} 3. Nf3 {[%emt 0:00:29]} d5 {[%emt 0:01:06]} 4. g3 {[%emt 0:00:45]} Bb4+ {[%emt 0:00:32]} 5. Bd2 {[%emt 0:00:51]} Be7 {[%emt 0:00:14]} 6. Bg2 {[%emt 0:00:32]} O-O {[%emt 0:00:48]} 7. O-O {[%emt 0:00:39]} c6 {[%emt 0:00:15]} 8. Qc2 {[%emt 0:01:10]} a5 {[%emt 0:00:24] E11: Bogo-Indian.} 9. Bf4 {[%emt 0:02:40]} a4 {[%emt 0:01:28] [#]} 10. Ne5 $146 {[%emt 0:04:42]} ({Predecessor:} 10. Nbd2 Nh5 11. Be3 Nf6 12. Rfd1 Nbd7 13. c5 b6 14. cxb6 Qxb6 15. Rac1 Ba6 16. Nb1 {1-0 Barp,A (2429)-Urazayev,A (2460) Titled Tuesday intern op 14th Feb Early blitz 2023 (7)}) 10... Nbd7 {[%emt 0:02:27]} 11. Nd2 {[%emt 0:02:20][%cal Bb1d2,Bd2f3,Bf3e5][%mdl 32]} Nxe5 {[%emt 0:10:26]} 12. Bxe5 {[%emt 0:01:09]} Ng4 {[%emt 0:02:20]} 13. Nf3 {[%emt 0:01:14]} Nxe5 {[%emt 0:02:13]} 14. Nxe5 {[%emt 0:00:07]} Qa5 {[%emt 0:04:54]} 15. Rfd1 {[%emt 0:03:03]} Bd6 {[%emt 0:01:39]} 16. Nd3 {[%emt 0:04:47]} Bd7 {[%emt 0:01:52]} 17. Rac1 {[%emt 0:01:18]} Rfd8 {[%emt 0:02:29]} 18. e3 {[%emt 0:04:54]} Be8 {[%emt 0:00:57]} (18... dxc4 {with more complications.} 19. Qxc4 e5 20. Nc5 Bxc5 21. Qxc5 Be6) 19. Bf1 {[%emt 0:02:50]} f6 {[%emt 0:04:28]} 20. cxd5 {[%emt 0:10:36]} cxd5 {[%emt 0:03:46]} 21. Qc3 {[%emt 0:04:27]} Qxc3 {[%emt 0:02:25]} 22. Rxc3 {[%emt 0:00:07]} Rdc8 {[%emt 0:04:22]} 23. Rdc1 {[%emt 0:07:48]} Rxc3 {[%emt 0:00:23]} 24. Rxc3 {[%emt 0:00:05]} Bc6 {[%emt 0:04:20]} 25. a3 {[%emt 0:02:49]} Kf7 {[%emt 0:01:39]} 26. Nb4 {[%emt 0:01:38]} Bd7 {[%emt 0:00:59]} 27. Bd3 {[%emt 0:01:18]} Ra5 {[%emt 0:03:39]} 28. Kf1 {[%emt 0:02:16]} (28. Bxh7 $2 g6 29. Rc2 Kg7 30. Bxg6 Kxg6 $19) 28... g5 {[%emt 0:02:25]} 29. Ke2 {[%emt 0:03:43]} h5 {[%emt 0:01:52][%cal Bh7h5,Bh5h4][%mdl 32]} 30. b3 {[%emt 0:02:20]} (30. Kd2 $11) 30... h4 {[%emt 0:08:45]} 31. bxa4 {[%emt 0:02:50]} Bxa4 {[%emt 0:02:45]} 32. Bc2 {[%emt 0:03:10]} Bd7 {[%emt 0:02:12]} 33. Bd3 {[%emt 0:00:31]} Ke7 {[%emt 0:02:01]} 34. Rb3 {[%emt 0:03:46]} f5 {[%emt 0:05:01]} 35. Nc2 {[%emt 0:01:45]} Bc6 {[%emt 0:00:50]} 36. Kd2 {[%emt 0:02:42]} Kd7 {[%emt 0:03:38]} 37. Kc1 {[%emt 0:01:15]} Kc7 {[%emt 0:02:40]} 38. Nb4 {[%emt 0:01:36]} Ba4 {[%emt 0:06:12]} 39. Rc3+ {[%emt 0:00:39]} Kb6 {[%emt 0:00:11]} 40. Kb2 {[%emt 0:02:38]} Ra8 {[%emt 0:01:24] Dodges Rc8} 41. Bc2 {[%emt 0:33:46]} (41. Rc1 $15) 41... Bb5 {[%emt 0:34:22]} (41... Bxb4 $1 $19 42. axb4 Kb5) 42. Nd3 $17 {[%emt 0:00:50]} Rh8 {[%emt 0:01:20]} 43. a4 {[%emt 0:11:01]} (43. Rb3 $17 {is a better defense.} hxg3 44. hxg3) 43... Ba6 {[%emt 0:00:00]} (43... Bc4 $19 {Threatens to win with ...Ka5.} 44. Kc1 Ka5) 44. Rb3+ {[%emt 0:00:00]} Kc7 {[%emt 0:00:00]} ({Black should try} 44... Ka7 $17 {And now ...hxg3 would win.} 45. Nc5 hxg3 46. hxg3 Rh2) 45. Kc3 $1 $15 {[%emt 0:00:00]} Bc4 {[%emt 0:00:00]} 46. Rb2 $1 {[%emt 0:00:00]} hxg3 {[%emt 0:00:00]} 47. hxg3 {[%emt 0:00:00]} Ba3 {[%emt 0:00:00] This pair of bishops is nice.} 48. Rb1 {[%emt 0:00:00]} Rh2 {[%emt 0:00:00]} 49. Rf1 {[%emt 0:00:00]} (49. Ne5 $1 $11) 49... Bd6 {[%emt 0:00:00]} 50. Bb3 {[%emt 0:00:00]} Ba6 {[%emt 0:00:00]} 51. Rc1 {[%emt 0:00:00]} Kb6 {[%emt 0:00:00]} 52. Rc2 {[%emt 0:00:00]} Rh8 {[%emt 0:00:00]} 53. Ne5 {[%emt 0:00:00]} Ka5 {[%emt 0:04:18]} 54. Kb2 {[%emt 0:00:00]} (54. Nf7 $15 Bb4+ 55. Kb2) 54... Bxe5 $19 {[%emt 0:01:28]} 55. dxe5 {[%emt 0:00:00][%mdl 4096] Endgame KRB-KRB} Kb4 {[%emt 0:00:14]} 56. Rd2 {[%emt 0:00:00]} Rh2 $1 {[%emt 0:00:14]} 57. Bd1 {[%emt 0:00:00]} Bc4 {[%emt 0:00:21]} 58. Kc1 {[%emt 0:00:00]} Rh1 $1 {[%emt 0:00:36]} 59. Kb2 {[%emt 0:00:00] Wards off Bb3} Rh2 {[%emt 0:02:10]} (59... g4 $19 60. Bc2 Rh2) 60. Kc1 $1 $17 {[%emt 0:00:00]} Ka3 {[%emt 0:00:42]} ({Better is} 60... Rg2 $17 61. Bf3 Rg1+ 62. Kb2 g4) 61. Rb2 $2 {[%emt 0:00:00][%mdl 8192] [#]} (61. f4 $11 Rh3 62. fxg5) 61... Rh1 $1 $19 {[%emt 0:00:16][%cal Oh1d1] ...Rxd1+! is the strong threat.} 62. Rxb7 {[%emt 0:01:44] [#] Black must now prevent Kd2.} d4 $2 {[%emt 0:02:19]} 63. Kd2 $11 {[%emt 0:03:07]} (63. exd4 $2 {loses.} Be2 64. Kd2 (64. Rb3+ $2 Kxa4 65. Kd2 Rxd1+ $19) 64... Bxd1 $19) 63... dxe3+ {[%emt 0:00:31]} (63... Bd5 $11 {remains equal.} 64. Rb5 Rh2) 64. fxe3 $16 {[%emt 0:00:15] a5 would be deadly.} Bd5 {[%emt 0:00:14]} 65. Rg7 {[%emt 0:00:46]} (65. Rb5 $5 {[%cal Ra4a5]}) 65... Kb4 {[%emt 0:00:37] The position is equal.} 66. Rxg5 {[%emt 0:01:14]} Rh2+ {[%emt 0:00:16]} 67. Ke1 {[%emt 0:00:50]} Rh1+ {[%emt 0:00:13]} 68. Kd2 {[%emt 0:00:24]} Rh2+ {[%emt 0:00:08] Weighted Error Value: White=0.18 (very precise) /Black=0.14 (very precise)} 1/2-1/2

[Event "Marienbad A1-GM 2024"]
[Site "Marianske Lazne"]
[Date "2024.01.16"]
[Round "4.2"]
[White "Samani, Yamac"]
[Black "Baenziger, Fabian"]
[Result "1-0"]
[ECO "A06"]
[WhiteElo "2380"]
[BlackElo "2414"]
[Annotator "TA"]
[PlyCount "63"]
[EventDate "2024.01.10"]
[EventType "tourn"]
[EventCountry "CZE"]
[SourceTitle "playchess.com"]
[Source "ChessBase"]
[SourceQuality "1"]
[TimeControl "40/5400+30:1800+30"]

{[%evp 16,63,0,0,0,0,0,-17,0,0,0,0,0,0,-10,-7,16,-15,-15,-20,-26,-28,0,0,0,14,1,7,0,8,8,10,0,18,41,-11,33,47,47,29,182,158,158,166,227,226,289,302,889,872]} 1. Nf3 {[%emt 0:05:46]} d5 {[%emt 0:00:15]} 2. e3 {[%emt 0:00:08]} Nf6 {[%emt 0:00:17]} 3. c4 {[%emt 0:00:07]} e6 {[%emt 0:00:23]} 4. Nc3 {[%emt 0:00:07]} Bd6 {[%emt 0:00:21]} 5. b3 {[%emt 0:00:32]} O-O {[%emt 0:00:24]} 6. Bb2 {[%emt 0:00:21]} c6 {[%emt 0:00:43]} 7. Be2 {[%emt 0:00:56]} Re8 {[%emt 0:01:38]} 8. d4 {[%emt 0:05:27]} Nbd7 {[%emt 0:02:43]} 9. O-O {[%emt 0:00:26]} b6 {[%emt 0:01:40] D45: Semi-Slav: 5 e3.} 10. a4 {[%emt 0:03:54]} Bb7 {[%emt 0:13:56] [#]} 11. Qb1 $146 {[%emt 0:02:59]} ({Predecessor:} 11. Re1 Rc8 12. Qb1 c5 13. cxd5 exd5 14. Rd1 Qe7 15. a5 Bb8 16. axb6 axb6 17. Ba6 Bxa6 18. Rxa6 cxd4 19. exd4 {0-1 Karthik,V (2609)-Kobalia,M (2542) Wch Rapid Samarkand 2023 (8)}) 11... a5 {[%emt 0:04:18] The position is equal.} 12. Rd1 {[%emt 0:05:21]} Qe7 {[%emt 0:04:04]} 13. e4 {[%emt 0:04:05]} dxe4 {[%emt 0:00:19]} 14. Nxe4 {[%emt 0:00:05]} Nxe4 {[%emt 0:00:48]} 15. Qxe4 {[%emt 0:00:02]} f5 {[%emt 0:12:54]} 16. Qd3 {[%emt 0:13:49][%cal Oc4c5]} Rad8 {[%emt 0:02:22]} 17. Bf1 {[%emt 0:02:48]} Nf6 {[%emt 0:12:05]} 18. Qc2 {[%emt 0:11:11][%cal Oc4c5]} Kh8 {[%emt 0:06:57]} 19. Re1 {[%emt 0:12:17]} Ne4 {[%emt 0:03:04]} 20. Rad1 {[%emt 0:06:41]} Bb4 {[%emt 0:03:56]} 21. Re3 {[%emt 0:03:47]} c5 {[%emt 0:00:52]} 22. d5 {[%emt 0:04:33]} exd5 {[%emt 0:04:15]} 23. cxd5 {[%emt 0:00:05]} Bxd5 {[%emt 0:01:58]} 24. Ne5 {[%emt 0:01:01]} Qc7 {[%emt 0:08:15]} 25. f3 {[%emt 0:03:39]} (25. Bc4 $14 Rxe5 26. Red3) 25... Nf6 {[%emt 0:03:15][%cal Oc5c4] Strongly threatening ...c4!} (25... Rxe5 {with more complications.} 26. Bxe5 Qxe5 27. fxe4 c4) 26. Bc4 {[%emt 0:03:33]} f4 {[%emt 0:02:26]} 27. Re2 {[%emt 0:02:31][%cal Od1d5] Hoping for Rxd5!} Qb7 {[%emt 0:02:00] [#] Black cannot hold the game after this.} (27... Bxc4 $11 {and Black is okay.} 28. Nxc4 Rxd1+ 29. Qxd1 Rd8) 28. Rxd5 $1 {[%emt 0:05:15][%mdl 512]} Rxd5 {[%emt 0:01:19] [#]} 29. Qf5 $1 {[%emt 0:02:11]} Red8 {[%emt 0:06:06]} (29... Rf8 $142) 30. Qxf4 $18 {[%emt 0:00:25]} ({Worse is} 30. Bxd5 Qxd5 31. Qxf4 Qd1+ 32. Kf2 Rd2 33. Nf7+ Kg8 34. Nh6+ gxh6 $11) 30... Rd1+ {[%emt 0:00:57]} 31. Kf2 {[%emt 0:00:05]} Bd2 $2 {[%emt 0:00:02]} (31... R1d5 32. Qh4 (32. Bxd5 Qxd5 33. Nc4 Rf8 $16) 32... Rxe5 33. Bxe5 Qe7) 32. Qh4 {[%emt 0:01:02] Weighted Error Value: White=0.07 (flawless) /Black=0.31} 1-0

[Event "Marienbad A1-GM 2024"]
[Site "Marianske Lazne"]
[Date "2024.01.16"]
[Round "4.3"]
[White "Neuman, Petr"]
[Black "Haring, Filip"]
[Result "1/2-1/2"]
[ECO "E32"]
[WhiteElo "2398"]
[BlackElo "2432"]
[Annotator "TA"]
[PlyCount "135"]
[EventDate "2024.01.10"]
[EventType "tourn"]
[EventCountry "CZE"]
[SourceTitle "playchess.com"]
[Source "ChessBase"]
[SourceQuality "1"]
[TimeControl "40/5400+30:1800+30"]

{[%evp 14,135,16,0,11,0,5,0,0,15,17,22,24,0,0,0,0,20,35,0,0,0,0,11,14,-25,-6,-27,21,0,0,8,0,0,0,0,0,0,0,0,0,0,0,0,0,0,0,0,0,0,0,0,0,0,0,0,0,0,0,-5,0,0,42,-102,-101,-185,-191,-185,-182,-197,-52,-49,-50,-93,-55,-58,-43,-58,-33,-33,0,0,0,0,0,-6,-6,-6,-6,-6,-6,-8,0,0,0,0,0,0,0,0,0,0,0,0,0,0,0,0,0,0,0,0,0,0,0,0,0,0,0,0,0,0,0,0]} 1. d4 {[%emt 0:00:04]} Nf6 {[%emt 0:00:27]} 2. c4 {[%emt 0:00:05]} e6 {[%emt 0:00:17]} 3. Nc3 {[%emt 0:00:05]} Bb4 {[%emt 0:02:25]} 4. Qc2 {[%emt 0:00:10]} O-O {[%emt 0:00:42]} 5. a3 {[%emt 0:00:05]} Bxc3+ {[%emt 0:00:13]} 6. Qxc3 {[%emt 0:00:03]} b6 {[%emt 0:02:28]} 7. Bg5 {[%emt 0:00:28]} Bb7 {[%emt 0:01:50]} 8. e3 {[%emt 0:00:14]} d6 {[%emt 0:01:51] E32: Nimzo-Indian: Classical (4 Qc2): 4...0-0.} 9. Ne2 {[%emt 0:00:28]} Nbd7 {[%emt 0:01:35]} 10. Qd3 {[%emt 0:01:33]} h6 {[%emt 0:08:09]} 11. Bh4 {[%emt 0:00:16]} Re8 {[%emt 0:03:42]} 12. Nc3 {[%emt 0:02:16]} Nf8 {[%emt 0:04:31]} 13. O-O-O {[%emt 0:06:44]} Ng6 {[%emt 0:02:04]} 14. Bg3 {[%emt 0:00:15]} a6 {[%emt 0:05:17]} 15. f3 {[%emt 0:02:00]} b5 {[%emt 0:14:23] [#]} 16. Qc2 $146 {[%emt 0:03:39]} ({Predecessor:} 16. cxb5 axb5 17. Qxb5 Ba6 18. Qb3 Qe7 19. Bxa6 Rxa6 20. h4 Rb6 21. Qc4 Qd7 22. h5 {0-1 Ginderskov,H (2330)-Lebedev,V (2370) Baltic Sea tt8 B06 email 2008}) 16... bxc4 {[%emt 0:02:50]} 17. Bxc4 {[%emt 0:00:10]} Nd5 {[%emt 0:00:03]} 18. Rhe1 {[%emt 0:00:51]} Qg5 {[%emt 0:07:40]} 19. Qd2 {[%emt 0:01:30]} Nxc3 {[%emt 0:03:57]} 20. Qxc3 {[%emt 0:02:16]} Ne7 {[%emt 0:01:30]} (20... h5 $142) 21. Qd2 {[%emt 0:01:32]} Bd5 {[%emt 0:00:45]} 22. Bxd5 {[%emt 0:06:48]} exd5 {[%emt 0:05:18]} (22... Qxd5 {is more complex.} 23. Kb1 Reb8 24. Rc1 Rb7) 23. e4 {[%emt 0:04:39]} Qg6 {[%emt 0:01:03]} 24. Qc2 {[%emt 0:03:02]} Reb8 {[%emt 0:07:44]} 25. Rd3 {[%emt 0:02:32]} Rb6 {[%emt 0:03:08]} 26. Rb3 {[%emt 0:00:56]} Rab8 {[%emt 0:01:26]} 27. Rxb6 {[%emt 0:00:26]} Rxb6 {[%emt 0:00:04]} 28. Kb1 {[%emt 0:01:53]} Rc6 {[%emt 0:02:22]} 29. Qb3 {[%emt 0:00:18]} dxe4 {[%emt 0:01:07]} 30. fxe4 {[%emt 0:00:06]} d5 {[%emt 0:00:02]} 31. Ka2 {[%emt 0:06:55]} dxe4 {[%emt 0:01:29]} 32. d5 $1 {[%emt 0:00:30]} Rb6 {[%emt 0:01:17]} 33. Qc4 {[%emt 0:00:46]} Qf6 {[%emt 0:06:54][%csl Gb6][%cal Rf6b2]} 34. Re2 {[%emt 0:09:07]} Rb5 {[%emt 0:00:03]} 35. Qxe4 {[%emt 0:10:39]} Nxd5 {[%emt 0:00:12][%cal Ob5b2,Be7d5,Bd5e3,Be3d1][%mdl 32]} 36. Qc2 {[%emt 0:00:19][%cal Re2e8]} Rb8 {[%emt 0:02:22] Against Re8+} 37. Qc4 {[%emt 0:01:34]} Ne3 {[%emt 0:01:54][%mdl 64] Deflection} 38. Qe4 {[%emt 0:02:38]} (38. Rxe3 $2 Qxb2#) (38. Qxc7 $2 Qe6+ 39. Kb1 (39. Ka1 $2 Rc8 $19) 39... Qf5+ 40. Ka2 (40. Ka1 $2 Rc8 $19) 40... Qd5+ 41. Ka1 Rb3 $19) (38. Qd3 $14 {stays ahead.} Nf5 39. Bxc7) 38... Nd1 $36 {[%emt 0:01:39][%cal Rb8b2][%mdl 2048] Black has strong initiative.} 39. Be5 {[%emt 0:00:12]} (39. Qe5 $17 Qxe5 40. Bxe5) 39... Qe6+ $19 {[%emt 0:00:53]} ({Not} 39... Qb6 40. Qg4 Qb3+ 41. Ka1 $11) 40. Ka1 {[%emt 0:00:07] [#]} Re8 $1 {[%emt 0:02:53]} 41. Qd4 {[%emt 0:35:03] [#]} f6 {[%emt 0:04:03]} ({Better is} 41... Nxb2 $1 $19 {Threatens to win with ...Nc4.} 42. Kxb2 (42. Qxb2 $2 {loses.} f6 $19) 42... f6) 42. Qxd1 $15 {[%emt 0:00:00]} fxe5 {[%emt 0:00:05][%mdl 4096] Endgame KQR-KQR} 43. Qc2 {[%emt 0:00:00][%cal Oa1b1]} Re7 {[%emt 0:03:14]} 44. Re4 {[%emt 0:00:00]} Qd5 {[%emt 0:01:20]} 45. Qe2 {[%emt 0:00:00]} Re6 {[%emt 0:00:53]} 46. Kb1 {[%emt 0:00:00]} Qb5 {[%emt 0:02:22]} 47. Qc4 {[%emt 0:00:00] The position is equal.} Qxc4 {[%emt 0:03:16]} 48. Rxc4 $11 {[%emt 0:00:00] KR-KR} c6 {[%emt 0:06:59]} 49. Ra4 {[%emt 0:00:00]} e4 {[%emt 0:00:51] ...e3 is the strong threat.} 50. Kc1 {[%emt 0:00:00]} e3 {[%emt 0:00:10] ( -> ...e2)} 51. Kd1 {[%emt 0:00:00]} Rd6+ {[%emt 0:00:02]} 52. Ke1 {[%emt 0:00:00]} Rd2 {[%emt 0:05:22]} 53. b4 $1 {[%emt 0:00:00]} Rxg2 {[%emt 0:00:59]} 54. Rxa6 {[%emt 0:00:00]} Rc2 {[%emt 0:01:13]} 55. h4 {[%emt 0:00:00]} Kf7 {[%emt 0:02:12] aiming for ...g5.} 56. Ra7+ {[%emt 0:00:00]} Kf6 {[%emt 0:00:39] White must now prevent ...g5.} 57. Rc7 {[%emt 0:00:00]} Rc3 {[%emt 0:02:12]} 58. Ke2 {[%emt 0:00:00]} Rxa3 {[%emt 0:01:32]} 59. Rxc6+ {[%emt 0:00:00]} Kf5 {[%emt 0:00:25]} 60. Rc7 {[%emt 0:00:00]} g6 {[%emt 0:00:59]} 61. Rc5+ {[%emt 0:00:00]} Kg4 {[%emt 0:00:52]} 62. Rc4+ {[%emt 0:00:00]} Kh5 {[%emt 0:01:28]} 63. Re4 {[%emt 0:00:00]} Rb3 {[%emt 0:01:22]} 64. Kf3 {[%emt 0:00:00]} g5 {[%emt 0:00:28]} 65. hxg5 {[%emt 0:00:00]} hxg5 {[%emt 0:00:03]} 66. Rxe3 {[%emt 0:00:00]} g4+ {[%emt 0:00:23]} 67. Kf2 {[%emt 0:00:00]} Rxb4 {[%emt 0:00:09]} 68. Kg3 {[%emt 0:00:00] Weighted Error Value: White=0.09 (flawless) /Black=0.07 (flawless)} 1/2-1/2

[Event "Marienbad A1-GM 2024"]
[Site "Marianske Lazne"]
[Date "2024.01.16"]
[Round "4.4"]
[White "Pang, Tao"]
[Black "Haba, Petr"]
[Result "1-0"]
[ECO "D27"]
[WhiteElo "2430"]
[BlackElo "2437"]
[Annotator "TA"]
[PlyCount "65"]
[EventDate "2024.01.10"]
[EventType "tourn"]
[EventCountry "CZE"]
[SourceTitle "playchess.com"]
[Source "ChessBase"]
[SourceQuality "1"]
[TimeControl "40/5400+30:1800+30"]

{[%evp 21,65,10,26,26,39,40,43,36,67,46,48,50,52,16,19,29,43,18,29,14,83,92,89,97,104,99,137,137,123,119,323,317,285,300,400,402,417,420,710,411,411,411,411,411,411,411]} 1. d4 {[%emt 0:00:04]} d5 {[%emt 0:00:33]} 2. c4 {[%emt 0:00:06]} c6 {[%emt 0:00:12]} 3. Nf3 {[%emt 0:01:14]} Nf6 {[%emt 0:00:10]} 4. e3 {[%emt 0:00:44]} a6 {[%emt 0:00:46]} 5. Bd3 {[%emt 0:03:33]} e6 {[%emt 0:03:07]} 6. O-O {[%emt 0:03:21]} dxc4 {[%emt 0:08:16]} 7. Bxc4 {[%emt 0:00:06]} c5 {[%emt 0:00:04]} 8. dxc5 {[%emt 0:04:23]} Bxc5 {[%emt 0:00:26]} 9. Nc3 {[%emt 0:05:59]} Qxd1 {[%emt 0:05:40]} 10. Rxd1 {[%emt 0:00:06]} b5 {[%emt 0:00:09]} 11. Be2 {[%emt 0:00:29]} Bb7 {[%emt 0:00:04]} 12. Nd2 {[%emt 0:01:08][%cal Bf3d2,Bd2b3,Bb3c5,Bc5a6,Ba6c7,Bc7d5][%mdl 32] D27: Queen's Gambit Accepted: Classical main line: 7 e4!? and 7 a4.} Be7 {[%emt 0:11:24]} 13. Nb3 {[%emt 0:07:52]} Nc6 {[%emt 0:00:35]} 14. e4 {[%emt 0:04:54] [#] White is slightly better.} b4 $146 {[%emt 0:12:41]} ({Predecessor:} 14... Nd7 15. Be3 Rd8 16. f4 O-O 17. Rac1 Nb4 18. Na5 Ba8 19. a3 Nc6 20. Nb3 b4 21. axb4 Nxb4 {0-1 Buhmann,R (2580)-Donchenko,A (2659) Hobbits Invitational blitz 2021 (3.12)}) 15. Na4 {[%emt 0:00:17]} Nxe4 {[%emt 0:00:10]} 16. Be3 {[%emt 0:06:33]} Rd8 {[%emt 0:05:12]} 17. f3 {[%emt 0:13:57]} Nf6 {[%emt 0:02:05]} 18. Nbc5 {[%emt 0:01:12]} Ba8 {[%emt 0:03:31]} 19. Nb6 {[%emt 0:04:01] Black must now prevent Rxd8+.} O-O {[%emt 0:04:04][%cal Oc6d4]} 20. Nxa6 {[%emt 0:08:37]} Nd5 {[%emt 0:05:14]} (20... Ne5 $11) 21. Nxd5 $16 {[%emt 0:00:14]} exd5 {[%emt 0:00:43]} 22. Bb6 {[%emt 0:03:45][%cal Be3b6,Bb6c7,Bc7b8,Bb8d6,Bd6e7][%mdl 96] [#] Deflection} Rc8 {[%emt 0:11:27]} 23. Nc7 {[%emt 0:03:57] White has more active pieces.} ({Don't do} 23. Rxd5 Nb8 24. Ra5 Rc2 $14) 23... Bf6 {[%emt 0:08:35]} 24. Nxd5 {[%emt 0:05:58]} ({Not} 24. Rxd5 Nd4 25. Rxd4 Bxd4+ 26. Bxd4 Rxc7 $15) 24... Bxb2 {[%emt 0:08:09] Black is weak on the light squares} 25. Rab1 {[%emt 0:00:04]} Ba3 {[%emt 0:00:04] This move loses the game for Black.} (25... Be5 $16) 26. Ba6 $18 {[%emt 0:01:20]} Rb8 {[%emt 0:06:23] [#]} 27. Bc7 $1 {[%emt 0:00:38]} Bb7 {[%emt 0:00:06]} 28. Bxb8 {[%emt 0:03:53]} Bxa6 {[%emt 0:00:05]} 29. Bd6 {[%emt 0:00:07][%csl LRb4,LRf8]} Rd8 {[%emt 0:00:04]} (29... Ra8 $142 30. Nxb4 Bxb4) 30. Ne7+ {[%emt 0:00:38]} Nxe7 {[%emt 0:00:05] White is winning.} 31. Bxe7 {[%emt 0:00:02][%cal Rd1d8]} Rxd1+ {[%emt 0:00:17]} 32. Rxd1 {[%emt 0:00:03][%cal Rd1d8]} f6 {[%emt 0:00:05]} 33. Rd4 {[%emt 0:00:36] Inhibits Bc4.   Weighted Error Value: White=0.18 (very precise) /Black=0.29 (precise)} 1-0

[Event "Marienbad A1-GM 2024"]
[Site "Marianske Lazne"]
[Date "2024.01.16"]
[Round "4.5"]
[White "Natsidis, Christoph"]
[Black "Stein, Robert"]
[Result "1/2-1/2"]
[ECO "D30"]
[WhiteElo "2324"]
[BlackElo "2429"]
[Annotator "TA"]
[PlyCount "15"]
[EventDate "2024.01.10"]
[EventType "tourn"]
[EventCountry "CZE"]
[SourceTitle "playchess.com"]
[Source "ChessBase"]
[SourceQuality "1"]
[TimeControl "40/5400+30:1800+30"]

{[%evp 9,15,22,17,19,40,19,23,8]} 1. d4 {[%emt 0:01:13]} d5 {[%emt 0:00:42]} 2. c4 {[%emt 0:00:03]} e6 {[%emt 0:00:07]} 3. Nf3 {[%emt 0:00:02]} h6 {[%emt 0:00:26]} 4. Nc3 {[%emt 0:00:25]} Nf6 {[%emt 0:00:07]} 5. e3 {[%emt 0:00:03]} a6 {[%emt 0:04:30]} 6. b3 {[%emt 0:05:01] D37: Queen's Gambit Declined: 5 Bf4.} c5 {[%emt 0:05:26]} 7. cxd5 {[%emt 0:01:31]} cxd4 {[%emt 0:04:36] [#]} 8. Nxd4 $146 {[%emt 0:05:43] A rather calm draw.   Weighted Error Value: White=0.09 (flawless) /Black=0.05 (flawless)} ({Predecessor:} 8. Qxd4 exd5 9. Bb2 Nc6 10. Qd3 Bd6 11. Be2 O-O 12. O-O Be6 13. Rac1 Qe7 14. Nd4 {½-½ Bu,X (2690)-Tabatabaei,M (2685) Asian Games Hangzhou rapid 2023 (7)}) 1/2-1/2